fUST/lending_fUST_20260608
["ID","MTS","AMOUNT","RATE_DAILY","PERIOD"]
[424433716,1780884639000,-14518.16,0.00016438,2]
[424433715,1780884639000,-1379.56,0.00016438,2]
[424433718,1780884639000,-1219.81,0.00016438,2]
[424433722,1780884639000,-500.0,0.00016438,2]
[424433724,1780884639000,-500.0,0.00016438,2]
[424433726,1780884639000,-500.0,0.00016438,2]
[424433729,1780884639000,-500.0,0.00016438,2]
[424433727,1780884639000,-649.27,0.00016438,2]
[424433731,1780884639000,-500.0,0.00016438,2]
[424433730,1780884639000,-1001.7,0.00016438,2]
[424433725,1780884639000,-500.0,0.00016438,2]
[424433728,1780884639000,-935.4,0.00016438,2]
[424433732,1780884639000,-628.22,0.00016438,2]
[424433733,1780884639000,-500.0,0.00016438,2]
[424433735,1780884639000,-1211.18,0.00016438,2]
[424433734,1780884639000,-500.0,0.00016438,2]
[424433737,1780884639000,-500.0,0.00016438,2]
[424433736,1780884639000,-879.32,0.00016438,2]
[424433738,1780884639000,-693.17,0.00016438,2]
[424433740,1780884639000,-500.0,0.00016438,2]
[424433739,1780884639000,-2298.45,0.00016438,2]
[424433719,1780884639000,-500.0,0.00016438,2]
[424433711,1780884639000,-500.0,0.00016438,2]
[424433721,1780884639000,-500.0,0.00016438,2]
[424433702,1780884639000,-500.0,0.00016438,2]
[424433676,1780884639000,-500.0,0.00016438,2]
[424433674,1780884639000,-500.0,0.00016438,2]
[424433682,1780884639000,-500.0,0.00016438,2]
[424433693,1780884639000,-500.0,0.00016438,2]
[424433692,1780884639000,-500.0,0.00016438,2]
[424433684,1780884639000,-500.0,0.00016438,2]
[424433681,1780884639000,-500.0,0.00016438,2]
[424433683,1780884639000,-500.0,0.00016438,2]
[424433690,1780884639000,-500.0,0.00016438,2]
[424433685,1780884639000,-500.0,0.00016438,2]
[424433687,1780884639000,-500.0,0.00016438,2]
[424433708,1780884639000,-500.0,0.00016438,2]
[424433688,1780884639000,-500.0,0.00016438,2]
[424433691,1780884639000,-500.0,0.00016438,2]
[424433686,1780884639000,-500.0,0.00016438,2]
[424433695,1780884639000,-741.88,0.00016438,2]
[424433697,1780884639000,-500.0,0.00016438,2]
[424433700,1780884639000,-500.0,0.00016438,2]
[424433699,1780884639000,-500.0,0.00016438,2]
[424433689,1780884639000,-557.48,0.00016438,2]
[424433698,1780884639000,-500.0,0.00016438,2]
[424433696,1780884639000,-500.0,0.00016438,2]
[424433701,1780884639000,-500.0,0.00016438,2]
[424433707,1780884639000,-500.0,0.00016438,2]
[424433706,1780884639000,-500.0,0.00016438,2]
[424433704,1780884639000,-633.19,0.00016438,2]
[424433703,1780884639000,-500.0,0.00016438,2]
[424433705,1780884639000,-815.67,0.00016438,2]
[424433694,1780884639000,-500.0,0.00016438,2]
[424433723,1780884639000,-500.0,0.00016438,2]
[424433746,1780884640000,-1441.70641936,0.00016438,2]
[424433745,1780884640000,-705.88602722,0.00016438,2]
[424433742,1780884640000,-1534.88,0.00016438,2]
[424433744,1780884640000,-2298.8,0.00016438,2]
[424433741,1780884640000,-500.0,0.00016438,2]
[424433743,1780884640000,-1980.76,0.00016438,2]
[424433762,1780884824000,-522.27289989,0.00013487,2]
[424433774,1780885182000,-5000.0,0.00014478,2]
[424433781,1780885251000,161167.32495658,0.00024808,30]
[424433784,1780885306000,1509.25730276,0.00024808,120]
[424433792,1780885444000,-3.81758449,0.00015624,2]
[424433790,1780885444000,-1000.0,0.00014985,2]
[424433791,1780885444000,-207.418661,0.000152,2]
[424433787,1780885444000,-5000.0,9.9e-05,2]
[424433789,1780885444000,-3614.57924287,0.000115,2]
[424433788,1780885444000,-174.18451164,0.0001,2]
[424433793,1780885539000,-4810.07207924,0.00015468,2]
[424433802,1780885633000,-179.88898647,0.0001572,2]
[424433800,1780885633000,-500.0,0.0001572,2]
[424433799,1780885633000,-500.0,0.0001572,2]
[424433797,1780885633000,-200.0,0.0001572,2]
[424433795,1780885633000,-500.0,0.0001572,2]
[424433796,1780885633000,-500.0,0.0001572,2]
[424433794,1780885633000,-240.8389356,0.00015528,2]
[424433803,1780885633000,-500.0,0.0001572,2]
[424433798,1780885633000,-500.0,0.0001572,2]
[424433804,1780885633000,-500.0,0.0001572,2]
[424433801,1780885633000,-500.0,0.0001572,2]
[424433806,1780885633000,-500.0,0.0001572,2]
[424433805,1780885633000,-500.0,0.0001572,2]
[424433814,1780885633000,-584.48029568,0.0001572,2]
[424433812,1780885633000,-500.0,0.0001572,2]
[424433813,1780885633000,-500.0,0.0001572,2]
[424433811,1780885633000,-500.0,0.0001572,2]
[424433815,1780885633000,-294.79178225,0.00015721,2]
[424433807,1780885633000,-500.0,0.0001572,2]
[424433808,1780885633000,-500.0,0.0001572,2]
[424433809,1780885633000,-500.0,0.0001572,2]
[424433810,1780885633000,-500.0,0.0001572,2]
[424433816,1780885644000,-1684.0,0.00015721,2]
[424433860,1780885832000,-625.0,0.00015721,2]
[424433994,1780885838000,-1052.0,0.0001589,2]
[424433992,1780885838000,-1052.0,0.0001589,2]
[424433970,1780885838000,-1052.0,0.0001589,2]
[424433957,1780885838000,-150.6725878,0.00015743,2]
[424433953,1780885838000,-22810.74721745,0.00015721,2]
[424433964,1780885838000,-500.0,0.0001589,2]
[424433966,1780885838000,-500.0,0.0001589,2]
[424433962,1780885838000,-500.0,0.0001589,2]
[424433960,1780885838000,-408.495,0.00015743,2]
[424433986,1780885838000,-1052.0,0.0001589,2]
[424433968,1780885838000,-331.477582,0.0001589,2]
[424433985,1780885838000,-1052.0,0.0001589,2]
[424433955,1780885838000,-659.4774058,0.00015721,2]
[424433974,1780885838000,-1052.0,0.0001589,2]
[424433988,1780885838000,-1052.0,0.0001589,2]
[424433996,1780885838000,-1052.0,0.0001589,2]
[424433998,1780885838000,-1052.0,0.0001589,2]
[424433976,1780885838000,-1052.0,0.0001589,2]
[424433979,1780885838000,-1052.0,0.0001589,2]
[424434002,1780885838000,-1052.0,0.0001589,2]
[424433972,1780885838000,-1052.0,0.0001589,2]
[424433983,1780885838000,-1052.0,0.0001589,2]
[424433977,1780885838000,-1052.0,0.0001589,2]
[424433981,1780885838000,-1052.0,0.0001589,2]
[424433990,1780885838000,-1052.0,0.0001589,2]
[424434000,1780885838000,-1052.0,0.0001589,2]
[424434014,1780885839000,-1069.31339495,0.0001589,2]
[424434018,1780885839000,-500.0,0.0001589,2]
[424434022,1780885839000,-500.0,0.0001589,2]
[424434016,1780885839000,-155.89753441,0.0001589,2]
[424434010,1780885839000,-1052.0,0.0001589,2]
[424434006,1780885839000,-1052.0,0.0001589,2]
[424434008,1780885839000,-1052.0,0.0001589,2]
[424434004,1780885839000,-1052.0,0.0001589,2]
[424434024,1780885839000,-151.5,0.0001589,2]
[424434012,1780885839000,-1052.0,0.0001589,2]
[424434026,1780885839000,-500.0,0.0001589,2]
[424434020,1780885839000,-500.0,0.0001589,2]
[424434036,1780885839000,-614.30683774,0.0001589,2]
[424434052,1780885839000,-325.80027339,0.00015964,2]
[424434050,1780885839000,-153032.96745671,0.00015964,2]
[424434047,1780885839000,-2355.54277787,0.00015964,2]
[424434043,1780885839000,-513.00143757,0.0001589,2]
[424434041,1780885839000,-500.0,0.0001589,2]
[424434045,1780885839000,-5803.1914595,0.00015964,2]
[424434038,1780885839000,-500.0,0.0001589,2]
[424434028,1780885839000,-151.5,0.0001589,2]
[424434032,1780885839000,-219.77131946,0.0001589,2]
[424434034,1780885839000,-500.0,0.0001589,2]
[424434040,1780885839000,-500.0,0.0001589,2]
[424434030,1780885839000,-612.91347708,0.0001589,2]
[424434347,1780885841000,-32.76735469,0.00015964,2]
[424434304,1780885841000,-4666.13897352,0.00015964,2]
[424434843,1780885897000,-754.69270523,0.00015646,2]
[424434844,1780885919000,-5000.0,0.00015804,2]
[424434845,1780885922000,2412.38490737,0.00024808,120]
[424434846,1780885936000,-654.5,0.00015954,3]
[424434853,1780886168000,162.00916026,0.00024808,120]
[424434854,1780886168000,162.00916026,0.00024808,120]
[424434856,1780886254000,-4900.0,0.00014756,2]
[424434865,1780886612000,-1552.75709585,0.00013896,2]
[424434868,1780886842000,-899.65162384,0.00013896,2]
[424434869,1780886851000,-1211.70983725,0.00013896,2]
[424434870,1780886851000,-1799.09232032,0.00014721,2]
[424434872,1780886969000,-220.56511237,0.0001434,2]
[424434900,1780887032000,-3275.43208746,0.0001433,2]
[424434919,1780887032000,-231.87130965,0.00014721,2]
[424434915,1780887032000,-2721.15583303,0.00014721,2]
[424434912,1780887032000,-340.95149604,0.0001433,2]
[424434913,1780887032000,-2030.855737,0.00014402,2]
[424434928,1780887032000,-500.0,0.00014825,2]
[424434929,1780887032000,-165.83787039,0.00014896,2]
[424434931,1780887032000,-218.21471038,0.00015621,2]
[424434914,1780887032000,-1000.0,0.00014414,2]
[424434930,1780887032000,-277.71806257,0.000153,2]
[424434933,1780887032000,-6572.90883945,0.00015689,2]
[424434922,1780887032000,-500.0,0.00014825,2]
[424434926,1780887032000,-500.0,0.00014825,2]
[424434921,1780887032000,-179.88898647,0.00014825,2]
[424434924,1780887032000,-500.0,0.00014825,2]
[424434934,1780887032000,-500.0,0.0001572,2]
[424434935,1780887032000,-19556.79746468,0.00015764,2]
[424434932,1780887032000,-210.68197961,0.00015621,2]
[424434974,1780887039000,-500.0,0.00014825,2]
[424434975,1780887039000,-221.24019379,0.00015764,2]
[424434970,1780887039000,-500.0,0.00014825,2]
[424434972,1780887039000,-500.0,0.00014825,2]
[424434973,1780887039000,-500.0,0.00014825,2]
[424434971,1780887039000,-500.0,0.00014825,2]
[424434984,1780887041000,-325.99178291,0.00015764,2]
[424434985,1780887041000,-359.99275684,0.00015764,2]
[424434987,1780887041000,-308.3999989,0.00015764,2]
[424434986,1780887041000,-462.097503,0.00015764,2]
[424434996,1780887043000,-20592.43316865,0.00015764,2]
[424434995,1780887043000,-482.49185942,0.00015764,2]
[424434994,1780887043000,-1648.15354497,0.00015764,2]
[424434993,1780887043000,-1630.39093306,0.00015764,2]
[424435032,1780887047000,-2352.75678737,0.00015764,2]
[424435031,1780887047000,-3635.35469515,0.00015764,2]
[424435030,1780887047000,-831.00811296,0.00015606,2]
[424435097,1780887327000,-225.18979572,0.00014825,2]
[424435100,1780887684000,-252.9956975,0.00015068,2]
[424435102,1780888029000,-749.55946425,0.0001448,2]
[424435104,1780888042000,-500.0,0.00014627,2]
[424435105,1780888042000,-98.85185771,0.00014627,2]
[424435103,1780888042000,-330.85737995,0.0001448,2]
[424435156,1780888232000,-1005.39485812,0.00013896,2]
[424435157,1780888232000,-1447.7685957,0.00013896,2]
[424435152,1780888232000,-762.16381574,0.00013757,2]
[424435154,1780888232000,-643.4527092,0.00013896,2]
[424435158,1780888232000,-1216.85888962,0.00013896,2]
[424435159,1780888232000,-414.77033174,0.00013896,2]
[424435183,1780888238000,-361.10500311,0.00013895,2]
[424435184,1780888238000,-138.89499689,0.00013895,2]
[424435189,1780888238000,-246.40958883,0.00014626,2]
[424435185,1780888238000,-368.26614013,0.00013895,2]
[424435191,1780888238000,-500.0,0.00014626,2]
[424435186,1780888238000,-445.3591305,0.00013895,2]
[424435190,1780888238000,-500.0,0.00014626,2]
[424435187,1780888238000,-336.97412664,0.00013896,2]
[424435194,1780888238000,-500.0,0.00014626,2]
[424435188,1780888238000,-500.0,0.00014626,2]
[424435192,1780888238000,-500.0,0.00014626,2]
[424435195,1780888238000,-500.0,0.00014626,2]
[424435196,1780888238000,-500.0,0.00014626,2]
[424435197,1780888238000,-364.09601701,0.00014626,2]
[424435199,1780888238000,-568.31603901,0.00014628,2]
[424435198,1780888238000,-135.90398299,0.00014626,2]
[424435200,1780888238000,-1313.50788114,0.00014628,2]
[424435201,1780888238000,-4234.10382033,0.00014628,2]
[424435193,1780888238000,-500.0,0.00014626,2]
[424435202,1780888238000,-2496.62416258,0.00014628,2]
[424435224,1780888243000,-1399.99713325,0.00014628,2]
[424435223,1780888243000,-895.99816528,0.00014628,2]
[424435218,1780888243000,-287.41003066,0.00014628,2]
[424435221,1780888243000,-279.99942665,0.00014628,2]
[424435219,1780888243000,-1943.25447384,0.00014628,2]
[424435225,1780888243000,-2015.99587187,0.00014628,2]
[424435226,1780888243000,-2741.25038678,0.00014628,2]
[424435217,1780888243000,-500.0,0.00014628,2]
[424435222,1780888243000,-503.99896797,0.00014628,2]
[424435220,1780888243000,-6318.69426788,0.00014628,2]
[424435228,1780888243000,-666.3872826,0.0001476,2]
[424435233,1780888243000,-1479.65225039,0.00015397,2]
[424435235,1780888243000,-4789.27921798,0.00015397,2]
[424435227,1780888243000,-295.93045008,0.00014628,2]
[424435239,1780888243000,-675.2372561,0.00015402,2]
[424435240,1780888243000,-2167.99641579,0.00015402,2]
[424435234,1780888243000,-3787.90976101,0.00015397,2]
[424435232,1780888243000,-946.97744025,0.00015397,2]
[424435229,1780888243000,-210.9711173,0.00014999,2]
[424435238,1780888243000,-939.20193247,0.00015397,2]
[424435231,1780888243000,-250.0,0.00015259,2]
[424435237,1780888243000,-338.11269569,0.00015397,2]
[424435236,1780888243000,-187.84038649,0.00015397,2]
[424435230,1780888243000,-379.212,0.00015253,2]
[424435263,1780888246000,-453.2,0.00015554,3]
[424435259,1780888246000,-3280.95611041,0.00015402,2]
[424435260,1780888246000,-5661.5496497,0.00015454,2]
[424435261,1780888246000,-1958.8694392,0.00015454,2]
[424435262,1780888246000,-906.41,0.00015554,3]
[424435265,1780888246000,-679.84,0.00015554,3]
[424435258,1780888246000,-532.67481014,0.00014628,2]
[424435266,1780888246000,-213.744256,0.00015564,2]
[424435264,1780888246000,-226.6,0.00015554,3]
[424435268,1780888246000,-213.744256,0.00015564,2]
[424435269,1780888246000,-213.744256,0.00015564,2]
[424435270,1780888246000,-14747.1721997,0.00015564,2]
[424435271,1780888246000,-5048.14672655,0.00015564,2]
[424435267,1780888246000,-213.744256,0.00015564,2]
[424435274,1780888399000,-5000.0,0.00015254,2]
[424435284,1780888757000,-357.26982633,0.00014481,2]
[424435302,1780888922000,105.38485381,7.6e-05,2]
[424435303,1780888922000,3158.57401643,7.6e-05,2]
[424435309,1780889114000,-741.75472863,0.000115,2]
[424435313,1780889156000,-112.36351145,0.00013896,2]
[424435312,1780889156000,-214.11876459,0.00013896,2]
[424435311,1780889156000,-1351.09833197,0.00013201,2]
[424435318,1780889229000,-273.05026482,0.00013896,2]
[424435319,1780889229000,-4.14548669,0.00013896,2]
[424435320,1780889371000,-237.43629868,0.00013201,2]
[424435336,1780889432000,-350.55062507,0.00013201,2]
[424435335,1780889432000,-443.59826132,0.00013201,2]
[424435424,1780889438000,-575.10515453,0.00014341,2]
[424435422,1780889438000,-178.83973402,0.00014341,2]
[424435426,1780889438000,-898.60180395,0.00014341,2]
[424435416,1780889438000,-144.6569154,0.00014341,2]
[424435412,1780889438000,-720.04319789,0.00013201,2]
[424435414,1780889438000,-1540.11344996,0.00013201,2]
[424435428,1780889438000,-1293.98659769,0.00014341,2]
[424435442,1780889438000,-500.0,0.00015095,2]
[424435432,1780889438000,-224.81418049,0.00014341,2]
[424435430,1780889438000,-1759.49827621,0.00014341,2]
[424435434,1780889438000,-401.45389374,0.00014341,2]
[424435444,1780889438000,-500.0,0.00015095,2]
[424435440,1780889438000,-500.0,0.00015095,2]
[424435458,1780889438000,-500.0,0.00015095,2]
[424435454,1780889438000,-500.0,0.00015095,2]
[424435456,1780889438000,-500.0,0.00015095,2]
[424435460,1780889438000,-500.0,0.00015095,2]
[424435466,1780889438000,-389.4712337,0.00015096,2]
[424435438,1780889438000,-256.82782099,0.00015095,2]
[424435464,1780889438000,-341.12845795,0.00015096,2]
[424435468,1780889438000,-5845.59585803,0.00015149,2]
[424435462,1780889438000,-618.87394324,0.00015095,2]
[424435449,1780889438000,-500.0,0.00015095,2]
[424435436,1780889438000,-577.51551337,0.00014341,2]
[424435452,1780889438000,-500.0,0.00015095,2]
[424435662,1780889440000,-1000.0,0.000155,3]
[424435661,1780889440000,-452.74001709,0.00015254,7]
[424435668,1780889440000,-198.8507713,0.0001589,2]
[424435666,1780889440000,-452.74001709,0.00015559,7]
[424435674,1780889440000,-675.10757537,0.0001589,2]
[424435670,1780889440000,-210.9711173,0.0001589,2]
[424435672,1780889440000,-379.74801114,0.0001589,2]
[424435676,1780889440000,-212.39897729,0.0001589,2]
[424435658,1780889440000,-8522.84256537,0.00015149,2]
[424435680,1780889440000,-227.25802434,0.0001589,2]
[424435688,1780889440000,-160.63297812,0.00016035,7]
[424435692,1780889440000,-179.28,0.00016142,2]
[424435690,1780889440000,-16189.22536014,0.00016138,2]
[424435694,1780889440000,-98645.55978391,0.00016238,2]
[424435684,1780889440000,-227.36,0.00016009,2]
[424435686,1780889440000,-452.74001709,0.00016017,7]
[424435682,1780889440000,-1054.85558651,0.00015944,2]
[424435678,1780889440000,-257.25107701,0.0001589,2]
[424435789,1780889441000,-15532.43457494,0.00016238,2]
[424436101,1780889443000,-2110.0,0.00016238,2]
[424436098,1780889443000,-3339.73672122,0.00016238,2]
[424436103,1780889443000,-3277.0474745,0.00016238,2]
[424436100,1780889443000,-7026.29999999,0.00016238,2]
[424436102,1780889443000,-1357.39668019,0.00016238,2]
[424436298,1780889446000,-5725.54219994,0.00016238,2]
[424436314,1780889472000,-50226.33789053,0.00016138,2]
[424436315,1780889484000,-50226.33789053,0.00016138,2]
[424436316,1780889519000,-1518.99204458,0.00015904,2]
[424436317,1780889536000,-242.74168833,0.00016041,2]
[424436329,1780890352000,-172.11913567,0.00015148,2]
[424436356,1780890450000,-346.14877021,0.00015764,2]
[424436355,1780890450000,-213.57979625,0.00015764,2]
[424436354,1780890450000,-379.28388802,0.00015764,2]
[424436353,1780890450000,-1830.5946731,0.00015764,2]
[424436352,1780890450000,-234.85475951,0.00015764,2]
[424436351,1780890450000,-336.916,0.00015717,2]
[424436350,1780890450000,-327.88086433,0.00015148,2]
[424436378,1780890632000,-1530.83243097,0.00015045,2]
[424436376,1780890632000,-268.25988933,0.00015045,2]
[424436382,1780890632000,-12.24382788,0.00015764,2]
[424436380,1780890632000,-199.47385974,0.00015764,2]
[424436385,1780890632000,-27.56559441,0.00015889,2]
[424436384,1780890632000,-155.99440559,0.00015889,2]
[424436383,1780890632000,-371.81536174,0.00015764,2]
[424436387,1780890632000,-5.24109766,0.00015937,2]
[424436386,1780890632000,-500.0,0.00015937,2]
[424436567,1780890638000,-174.53837704,0.00015937,2]
[424436568,1780890638000,-527.25096117,0.00015937,2]
[424436569,1780890638000,-55.02498118,0.00015937,2]
[424436585,1780890641000,-274.94163753,0.00015937,2]
[424436584,1780890641000,-500.0,0.00015937,2]
[424436586,1780890641000,-225.05836247,0.00015937,2]
[424436583,1780890641000,-444.97501882,0.00015937,2]
[424436587,1780890641000,-101.61101031,0.00015937,2]
[424436596,1780890643000,-500.0,0.00015937,2]
[424436594,1780890643000,-398.38898969,0.00015937,2]
[424436595,1780890643000,-500.0,0.00015937,2]
[424436598,1780890643000,-4933.15400152,0.00015938,2]
[424436597,1780890643000,-254.06629898,0.00015938,2]
[424436601,1780890646000,-1515.73521066,0.00015779,2]
[424436600,1780890646000,-842.0,0.00015779,2]
[424436599,1780890646000,-2642.26478934,0.00015779,2]
[424436602,1780890646000,-1864.82041557,0.00015938,2]
[424436603,1780890663000,1290.65,0.00024786,30]
[424436604,1780890729000,-5000.0,0.00014448,2]
[424436614,1780891639000,-815.9273847,0.00012285,2]
[424436616,1780891663000,-749.55946425,0.00012285,2]
[424436615,1780891663000,-299.82241458,0.00012285,2]
[424436617,1780891675000,-299.82241458,0.00012285,2]
[424436650,1780891832000,-151.0,0.00011916,2]
[424436654,1780891832000,-94.94375545,0.00012284,2]
[424436652,1780891832000,-166.0,0.00012283,2]
[424436675,1780891838000,-192.5528679,0.00012284,2]
[424436676,1780891838000,-484.85973666,0.00012284,2]
[424436674,1780891838000,-500.0,0.00012284,2]
[424436672,1780891838000,-169.53677791,0.00012284,2]
[424436673,1780891838000,-500.0,0.00012284,2]
[424436671,1780891838000,-500.0,0.00012284,2]
[424436669,1780891838000,-183.93277316,0.00012284,2]
[424436670,1780891838000,-500.0,0.00012284,2]
[424436668,1780891838000,-465.01389467,0.00012284,2]
[424436688,1780891841000,-148.5860869,0.00012284,2]
[424436687,1780891841000,-500.0,0.00012284,2]
[424436686,1780891841000,-442.65879945,0.00012284,2]
[424436685,1780891841000,-15.14026334,0.00012284,2]
[424436694,1780891846000,-123.67577324,0.00012284,2]
[424436693,1780891846000,-351.4139131,0.00012284,2]
[424436697,1780891847000,-1340.41394978,0.00012285,2]
[424436696,1780891847000,-500.0,0.00012284,2]
[424436695,1780891847000,-376.32422676,0.00012284,2]
[424436702,1780892026000,843.85229937,0.00024788,120]
[424436713,1780892488000,-185.50408643,0.00011681,2]
[424436714,1780892488000,-4663.49591357,0.00011682,2]
[424436712,1780892488000,-151.0,0.00011332,2]
[424436711,1780892488000,-5000.0,0.00011218,2]
[424436715,1780892490000,-336.50408643,0.00011682,2]
[424436716,1780892490000,-500.0,0.00012284,2]
[424436717,1780892490000,-559.86115962,0.00012284,2]
[424436718,1780892490000,-500.0,0.00012284,2]
[424436719,1780892490000,-500.0,0.00012284,2]
[424436722,1780892490000,-252.38,0.00013264,2]
[424436721,1780892490000,-252.38,0.00013264,2]
[424436724,1780892490000,-252.4,0.00013264,2]
[424436728,1780892490000,-315.05240436,0.00013772,2]
[424436727,1780892490000,-234.547881,0.00013699,2]
[424436720,1780892490000,-652.0,0.00012285,2]
[424436725,1780892490000,-254.61393159,0.00013416,2]
[424436723,1780892490000,-252.38,0.00013264,2]
[424436726,1780892490000,-5137.880537,0.00013515,2]
[424436731,1780892491000,-238.07140021,0.00013874,2]
[424436732,1780892491000,-191.3,0.0001419,2]
[424436729,1780892491000,-484.77059564,0.00013772,2]
[424436730,1780892491000,-500.0,0.00013874,2]
[424436734,1780892590000,-2265.29865585,0.00012,2]
[424436735,1780892590000,-1487.1130217,0.00012913,2]
[424436737,1780892590000,-2419.88455921,0.00014511,2]
[424436736,1780892590000,-3440.98749059,0.00014366,2]
[424436738,1780892590000,-234.547881,0.00014658,2]
[424436749,1780892733000,-151.0,0.00014658,2]
[424436750,1780892733000,-151.0,0.00014658,2]
[424436748,1780892733000,-151.0,0.00014658,2]
[424436744,1780892733000,-151.0,0.00014658,2]
[424436746,1780892733000,-151.0,0.00014658,2]
[424436747,1780892733000,-151.0,0.00014658,2]
[424436743,1780892733000,-153.0210639,0.00014658,2]
[424436745,1780892733000,-151.0,0.00014658,2]
[424436742,1780892733000,-240.8389356,0.00012674,2]
[424436751,1780892733000,-76.17446128,0.00014658,2]
[424436752,1780892853000,-207.418661,0.00014313,2]
[424436753,1780892853000,-69.77709051,0.00014658,2]
[424436789,1780893032000,-3870.45150661,0.00012792,2]
[424436792,1780893032000,-433.45811007,0.00012792,2]
[424436825,1780893038000,-183.91391003,0.00013737,2]
[424436827,1780893038000,-5.04844821,0.00014658,2]
[424436823,1780893038000,-1280.74605482,0.00012792,2]
[424436884,1780893039000,-181.94857935,0.00015208,2]
[424436882,1780893039000,-180.0,0.00015208,2]
[424436872,1780893039000,-151.0,0.00015208,2]
[424436870,1780893039000,-151.0,0.00015208,2]
[424436866,1780893039000,-151.0,0.00015208,2]
[424436868,1780893039000,-151.0,0.00015208,2]
[424436860,1780893039000,-652.0,0.00014658,2]
[424436862,1780893039000,-269.532,0.00015129,2]
[424436863,1780893039000,-151.0,0.00015208,2]
[424436858,1780893039000,-652.0,0.00014658,2]
[424436855,1780893039000,-652.0,0.00014658,2]
[424436848,1780893039000,-156.0,0.00014658,2]
[424436846,1780893039000,-166.0,0.00014658,2]
[424436851,1780893039000,-652.0,0.00014658,2]
[424436849,1780893039000,-156.37126756,0.00014658,2]
[424436831,1780893039000,-652.0,0.00014658,2]
[424436842,1780893039000,-652.0,0.00014658,2]
[424436844,1780893039000,-638.0,0.00014658,2]
[424436829,1780893039000,-151.0,0.00014658,2]
[424436838,1780893039000,-652.0,0.00014658,2]
[424436840,1780893039000,-652.0,0.00014658,2]
[424436833,1780893039000,-652.0,0.00014658,2]
[424436836,1780893039000,-652.0,0.00014658,2]
[424436854,1780893039000,-652.0,0.00014658,2]
[424436886,1780893039000,-652.0,0.00015208,2]
[424436890,1780893039000,-652.0,0.00015208,2]
[424436874,1780893039000,-166.0,0.00015208,2]
[424436928,1780893039000,-250.0,0.00015236,2]
[424436930,1780893039000,-5472.04057037,0.00015238,2]
[424436927,1780893039000,-500.0,0.00015236,2]
[424436933,1780893039000,-1830.79622631,0.00015238,2]
[424436925,1780893039000,-500.0,0.00015236,2]
[424436923,1780893039000,-500.0,0.00015236,2]
[424436919,1780893039000,-500.0,0.00015236,2]
[424436921,1780893039000,-500.0,0.00015236,2]
[424436917,1780893039000,-500.0,0.00015236,2]
[424436900,1780893039000,-500.0,0.00015236,2]
[424436913,1780893039000,-500.0,0.00015236,2]
[424436907,1780893039000,-500.0,0.00015236,2]
[424436904,1780893039000,-500.0,0.00015236,2]
[424436902,1780893039000,-500.0,0.00015236,2]
[424436910,1780893039000,-500.0,0.00015236,2]
[424436909,1780893039000,-500.0,0.00015236,2]
[424436898,1780893039000,-500.0,0.00015236,2]
[424436896,1780893039000,-304.7946577,0.00015236,2]
[424436878,1780893039000,-166.0,0.00015208,2]
[424436880,1780893039000,-180.0,0.00015208,2]
[424436876,1780893039000,-166.0,0.00015208,2]
[424436892,1780893039000,-500.0,0.00015236,2]
[424436894,1780893039000,-500.0,0.00015236,2]
[424436915,1780893039000,-500.0,0.00015236,2]
[424436888,1780893039000,-652.0,0.00015208,2]
[424437228,1780893041000,-8.01705677,0.00015159,2]
[424437268,1780893047000,-6430.1446305,0.00015238,2]
[424437267,1780893047000,-2124.10744663,0.00015159,2]
[424437274,1780893062000,500.0,0.00023287,120]
[424437277,1780893113000,1000.0,0.00023287,120]
[424437278,1780893129000,-152.0,0.0001432,2]
[424437279,1780893146000,-3305.2430648,0.00015138,2]
[424437280,1780893177000,1515.177517,0.00023287,120]
[424437281,1780893221000,1000.0,0.00023287,120]